Cogmind - Beta 10 X1 @@@ ROGUE MODE // 2020.06.27 @ 17:09:36 Player: SirMrDrProf Result: Self-destructed Performance ------------- Evolutions (7) 3500 Regions Visited (32) 6400 Robots Destroyed (110) 550 Value Destroyed (3203) 3203 Prototype IDs (71) 1420 Alien Tech Used (2) 400 Bonus (9597) 9597 TOTAL SCORE: 25070 Bonus ------- High Alert Combat Kills 81 Follower Combat Kills 1781 Entered Garrisons 400 Used RIF Installer 500 Network Hubs Disabled 200 Aligned with FarCom 300 Met Data Miner 300 Met Imprinter 300 Built Enhanced Grunts 300 A7 Reached Mainframe 300 Met R17 at Cetus 500 Found Hidden Lab 3000 Used Core Reset Matrix 3000 Friendly Fire -1365 Cogmind --------- Core Integrity 1241/1300 Matter 300/300 Energy 132/240 System Corruption 1% Temperature Cool (0) Movement Flying (24) Location -3/Garrison Parts ------- > --- POWER (2) -------- Micro Fission Core Light Antimatter Reactor > --- PROPULSION (5) --- Improved Cesium-ion Thruster Biomechanical Wings Cooled Field Propulsion Drive Cooled Field Propulsion Drive Cooled Field Propulsion Drive > --- UTILITY (12) ----- Experimental Power Amplifier Medium Storage Unit Inertial Stasis Machine Experimental Terrain Scan Processor Microactuators Centrium Medium Armor Plating Experimental Powered Armor Improved Force Field System Mapper Deep Network Scanner Deep Network Scanner > --- WEAPON (2) ------- Kinetic Spear CR-A16's Behemoth Slayer > --- INVENTORY (8) ---- Cooled Cesium-ion Thruster Cooled Field Propulsion Drive Coolant Network Improved Matter Compressor (300) Point Defense Array Transdimensional Reconstructor Improved Grenade Launcher Peak State ------------ > --- POWER ------------ Micro Fission Core Light Antimatter Reactor > --- PROPULSION ------- Improved Cesium-ion Thruster Biomechanical Wings Cooled Field Propulsion Drive Cooled Field Propulsion Drive Cooled Field Propulsion Drive > --- UTILITY ---------- Experimental Power Amplifier Coolant Network Medium Storage Unit Inertial Stasis Machine Experimental Terrain Scan Processor Microactuators Experimental Powered Armor Improved Force Field System Mapper Deep Network Scanner Deep Network Scanner > --- WEAPON ----------- Kinetic Spear CR-A16's Behemoth Slayer > --- INVENTORY -------- Cooled Cesium-ion Thruster Cooled Field Propulsion Drive Improved Matter Compressor Experimental Core Shielding Centrium Medium Armor Plating Point Defense Array Transdimensional Reconstructor Improved Grenade Launcher [Rating: 162] Favorites ----------- Power Micro Nuclear Core Engine Light Deuterium Engine Power Core Micro Nuclear Core Reactor Light Antimatter Reactor Propulsion Improved Flight Unit Treads Light Treads Flight Unit Improved Flight Unit Utility Hacking Suite Device Experimental Heat Sink Storage Medium Storage Unit Processor Advanced Signal Interpreter Hackware Hacking Suite Protection Improved Propulsion Shielding Weapon Kinetic Spear Energy Gun EM Pulse Gun Energy Cannon Advanced Beam Cannon Ballistic Gun Improved Assault Rifle Launcher Grenade Launcher Special Weapon Remote Datajack Slashing Weapon Makeshift Axe Piercing Weapon Kinetic Spear Special Melee Weapon Improved Datajack Build | -11 -10 -10 -9 -9 -9 -8 -8 -8 -7 -7 -7 -7 -7 -7 -6 -6 -6 -6 -6 -6 -6 -5 -5 -5 -5 -5 -5 -4 -4 -4 -3 -3 ------- Run | Scr Mat Min Mat Min Exi Min Mat Sto Fac Was Fac Low Low Zio Pro Fac Gar Fac Low Low Dat Pro Fac Ext Cet Arc Hub Fac Arm Lab Res Gar Slots Evolved 14 | . . . 2 . . . 2 . 2 . . . . . . 2 . . . . . . 2 . . . . 2 . . 2 . Power 1 | . . . . . . . . . 1 . . . . . . . . . . . . . . . . . . . . . . . Propulsion 3 | . . . 1 . . . 1 . . . . . . . . 1 . . . . . . . . . . . . . . . . Utility 10 | . . . 1 . . . 1 . 1 . . . . . . 1 . . . . . . 2 . . . . 2 . . 2 . Weapon . | . . . . . . . . . . . . . . . . . . . . . . . . . . . . . . . . . Parts Attached 171 | 5 . 2 11 1 . 1 4 7 9 . 12 2 . 13 . 5 2 9 . 1 3 1 18 9 9 2 3 12 10 13 6 1 Power 16 | 1 . . . 1 . . . . 4 . 1 . . . . 1 . 1 . . . . 1 2 2 . . 1 1 . . . Engine 4 | 1 . . . . . . . . 3 . . . . . . . . . . . . . . . . . . . . . . . Core 10 | . . . . 1 . . . . 1 . 1 . . . . 1 . 1 . . . . 1 2 1 . . 1 . . . . Reactor 2 | . . . . . . . . . . . . . . . . . . . . . . . . . 1 . . . 1 . . . Propulsion 30 | 2 . 2 5 . . . 1 . 2 . 5 1 . . . 2 . 2 . . 1 . 2 . . . . 5 . . . . Treads 2 | 2 . . . . . . . . . . . . . . . . . . . . . . . . . . . . . . . . Leg . | . . . . . . . . . . . . . . . . . . . . . . . . . . . . . . . . . Wheel . | . . . . . . . . . . . . . . . . . . . . . . . . . . . . . . . . . Hover . | . . . . . . . . . . . . . . . . . . . . . . . . . . . . . . . . . Flight 28 | . . 2 5 . . . 1 . 2 . 5 1 . . . 2 . 2 . . 1 . 2 . . . . 5 . . . . Utility 73 | . . . 2 . . . 1 1 2 . 1 . . 11 . 2 2 4 . 1 . 1 9 1 5 . 1 6 5 13 4 1 Device 40 | . . . . . . . 1 . . . . . . 9 . 2 1 2 . 1 . 1 1 . 3 . . 5 3 9 2 . Storage 5 | . . . 1 . . . . . . . . . . 1 . . . 1 . . . . . . . . 1 . . . . 1 Processor 3 | . . . . . . . . . 1 . . . . . . . . . . . . . 1 . . . . . 1 . . . Hackware 11 | . . . 1 . . . . . 1 . . . . . . . . 1 . . . . 6 . . . . . . 2 . . Protection 14 | . . . . . . . . 1 . . 1 . . 1 . . 1 . . . . . 1 1 2 . . 1 1 2 2 . Artifact . | . . . . . . . . . . . . . . . . . . . . . . . . . . . . . . . . . Weapon 52 | 2 . . 4 . . 1 2 6 1 . 5 1 . 2 . . . 2 . . 2 . 6 6 2 2 2 . 4 . 2 . Energy Gun 3 | 2 . . 1 . . . . . . . . . . . . . . . . . . . . . . . . . . . . . Energy Cannon 2 | . . . 1 . . . . . 1 . . . . . . . . . . . . . . . . . . . . . . . Ballistic Gun 11 | . . . 1 . . 1 2 3 . . 2 . . . . . . . . . . . . . 1 . 1 . . . . . Ballistic Cannon . | . . . . . . . . . . . . . . . . . . . . . . . . . . . . . . . . . Launcher 8 | . . . 1 . . . . 3 . . 1 . . . . . . . . . . . . 1 . . . . 2 . . . Special Weapon 3 | . . . . . . . . . . . . . . . . . . . . . . . . 2 . 1 . . . . . . Impact Weapon . | . . . . . . . . . . . . . . . . . . . . . . . . . . . . . . . . . Slashing Weapon 1 | . . . . . . . . . . . . 1 . . . . . . . . . . . . . . . . . . . . Piercing Weapon 19 | . . . . . . . . . . . 2 . . 2 . . . 1 . . 1 . 3 3 1 1 1 . 2 . 2 . Special Melee Weapon 5 | . . . . . . . . . . . . . . . . . . 1 . . 1 . 3 . . . . . . . . . Unidentified Prototypes 27 | . . . 2 . . . 1 . . . 2 . . 5 . . . 2 . . . . 1 . 4 . 1 2 . 5 2 . Parts Lost 12 | . . . 1 1 . . . . 2 . 1 . . . . . 2 . . . 2 . . 1 . . . . 1 . . 1 Power 1 | . . . . . . . . . 1 . . . . . . . . . . . . . . . . . . . . . . . Propulsion 3 | . . . . . . . . . 1 . 1 . . . . . . . . . 1 . . . . . . . . . . . Utility 6 | . . . . . . . . . . . . . . . . . 2 . . . 1 . . 1 . . . . 1 . . 1 Weapon 2 | . . . 1 1 . . . . . . . . . . . . . . . . . . . . . . . . . . . . Highest Loss Streak 2 | . . . 1 1 . . . . 2 . 1 . . . . . 2 . . . 2 . . 1 . . . . 1 . . 1 Average Slot Usage (%) 95 | . 71 70 80 85 77 82 89 90 92 100 99 92 92 98 100 100 97 99 100 100 100 98 100 100 100 100 100 98 98 99 96 96 Engine 4 | . 14 14 11 8 . . . . 5 15 14 7 7 7 7 . . . . . . . . . . . . . . . . . Core 7 | . . . . 2 11 11 9 9 3 . . 7 7 7 7 12 13 13 13 13 13 13 11 11 11 11 11 10 5 5 4 4 Flight 29 | . . 18 33 33 33 33 36 36 29 30 30 30 30 30 30 33 33 33 33 33 33 33 29 29 29 29 29 26 26 26 23 23 Device 7 | . . . . . . . 8 . . . . . . 5 7 13 16 17 13 18 20 18 11 11 9 5 5 14 11 17 21 19 Storage 5 | . . . 9 11 11 11 9 9 7 7 7 7 7 1 . . . . 6 6 6 6 5 5 5 5 10 10 9 5 4 5 Processor 1 | . . . . . . . . . 6 7 3 . . . . . . . . . . . . . . . . . 2 5 4 4 Hackware 14 | . . . 6 11 11 11 9 9 13 15 15 15 15 15 15 13 10 12 13 7 6 6 21 23 23 23 17 15 15 15 14 14 Protection 8 | . . . . . . . . 8 7 7 11 15 15 15 15 13 8 7 6 6 6 6 5 5 6 11 11 10 10 7 8 9 Energy Gun 2 | . 28 28 17 8 . . . . . . . . . . . . . . . . . . . . . . . . . . . . Ballistic Gun 2 | . . . 1 11 11 16 18 17 11 7 4 . . . . . . . . . . . . . . . . . . . . . Piercing Weapon 7 | . . . . . . . . . . . 2 7 7 13 15 13 13 11 13 13 10 13 10 10 11 10 10 10 9 10 9 9 Naked Turns . | . . . . . . . . . . . . . . . . . . . . . . . . . . . . . . . . . Heaviest Build 66 | 7 7 7 13 16 16 18 21 22 23 21 24 22 22 22 21 24 27 35 35 36 36 35 35 38 36 36 40 43 51 58 66 66 Greatest Support 68 | 40 40 40 18 18 18 18 22 22 23 23 24 24 24 24 24 32 32 36 36 36 36 36 40 40 40 40 40 68 52 68 68 68 Greatest Overweight (x) 2 | . . 2 . . . . . . . . . . . . . . . . . . . . . . . . . . . . . . Average Overweight (x) . | . . . . . . . . . . . . . . . . . . . . . . . . . . . . . . . . . Largest Inventory Capacity 8 | 4 4 4 6 6 6 6 6 6 6 6 6 6 6 6 4 4 4 8 8 8 8 8 8 8 8 8 8 8 8 8 8 8 Average Capacity 6 | 4 4 4 5 6 6 6 6 6 6 6 6 6 6 4 4 4 4 4 8 8 8 8 8 8 8 8 8 8 8 8 8 8 Most Carried 8 | 3 4 4 6 6 6 6 6 6 6 6 6 6 6 6 4 4 4 5 5 6 7 6 8 8 8 8 8 8 8 8 8 8 Average Carried 5 | 1 3 4 4 6 6 6 5 6 5 5 5 5 6 3 4 3 4 3 5 5 5 5 7 7 7 8 8 7 7 7 7 8 Final Capacity 8 | 4 4 4 6 6 6 6 6 6 6 6 6 6 6 4 4 4 4 8 8 8 8 8 8 8 8 8 8 8 8 8 8 8 Final Carried 8 | 3 4 4 6 6 6 6 6 6 5 6 5 6 6 4 4 4 4 5 5 5 6 6 8 8 8 8 8 8 8 8 8 8 Class Distribution -------------------- 64% | Hacker-Sprinter 19% | Sprinter 7% | Mutant 6% | Wizard-Sprinter Dominant Class ---------------- Mutant | -10/Materials Mutant | -10/Mines Mutant | -9/Materials Sprinter | -9/Mines Sprinter | -9/Exiles Sprinter | -8/Mines Sprinter | -8/Materials Sprinter | -8/Storage Hacker-Sprinter | -7/Factory Hacker-Sprinter | -7/Waste Hacker-Sprinter | -7/Factory Hacker-Sprinter | -7/Lower Caves Hacker-Sprinter | -7/Lower Caves Hacker-Sprinter | -7/Zion Hacker-Sprinter | -6/Proximity Caves Hacker-Sprinter | -6/Factory Hacker-Sprinter | -6/Garrison Sprinter | -6/Factory Sprinter | -6/Lower Caves Sprinter | -6/Lower Caves Sprinter | -6/Data Miner Sprinter | -5/Proximity Caves Hacker-Sprinter | -5/Factory Hacker-Sprinter | -5/Extension Hacker-Sprinter | -5/Cetus Hacker-Sprinter | -5/Archives Hacker-Sprinter | -5/Hub_04(d) Hacker-Sprinter | -4/Factory Hacker-Sprinter | -4/Armory Hacker-Sprinter | -4/Lab Wizard-Sprinter | -3/Research Wizard-Sprinter | -3/Garrison Resources | -11 -10 -10 -9 -9 -9 -8 -8 -8 -7 -7 -7 -7 -7 -7 -6 -6 -6 -6 -6 -6 -6 -5 -5 -5 -5 -5 -5 -4 -4 -4 -3 -3 ----------- Run | Scr Mat Min Mat Min Exi Min Mat Sto Fac Was Fac Low Low Zio Pro Fac Gar Fac Low Low Dat Pro Fac Ext Cet Arc Hub Fac Arm Lab Res Gar Matter Collected 2808 | 230 . 35 110 47 . . 46 44 371 . 154 77 . 148 . 40 20 100 . 10 . . 100 362 40 75 . 458 16 83 108 134 Remotely . | . . . . . . . . . . . . . . . . . . . . . . . . . . . . . . . . . Salvage Created 5198 | . . 235 305 . . . 46 63 326 . 350 14 108 168 176 237 264 365 . . 24 . 221 1003 87 . 35 569 68 83 108 343 Parts 270 | . . 8 21 . . . 4 12 22 . 18 . 2 8 7 9 19 12 . . 2 . 9 48 5 . 3 18 9 7 3 24 Haulers Intercepted 23 | . . . 3 . . . 1 1 2 . 4 . . . . 1 . 3 . . . . 2 1 . . . 4 . . 1 . Recyclers Shooed 6 | . . 2 . . . . . . 1 . 3 . . . . . . . . . . . . . . . . . . . . . Parts Field Recycled . | . . . . . . . . . . . . . . . . . . . . . . . . . . . . . . . . . Retrieved Matter . | . . . . . . . . . . . . . . . . . . . . . . . . . . . . . . . . . Parts Self-Destructed 19 | . . . . . . . . . . . . 5 2 . 12 . . . . . . . . . . . . . . . . . Prevented 2 | . . . . . . . . . . . . . . . . . . . . 1 . 1 . . . . . . . . . . Kills | -11 -10 -10 -9 -9 -9 -8 -8 -8 -7 -7 -7 -7 -7 -7 -6 -6 -6 -6 -6 -6 -6 -5 -5 -5 -5 -5 -5 -4 -4 -4 -3 -3 ------- Run | Scr Mat Min Mat Min Exi Min Mat Sto Fac Was Fac Low Low Zio Pro Fac Gar Fac Low Low Dat Pro Fac Ext Cet Arc Hub Fac Arm Lab Res Gar Combat Hostiles Destroyed 64 | . . 2 7 . . . . 4 5 . 4 . 2 1 3 1 4 . . . . . . 18 . . . 2 4 1 . 6 Melee 26 | . . . . . . . . . . . . . 2 1 3 1 3 . . . . . . 8 . . . 1 1 1 . 5 Guns 7 | . . 2 1 . . . . . 4 . . . . . . . . . . . . . . . . . . . . . . . Cannons 1 | . . . . . . . . . 1 . . . . . . . . . . . . . . . . . . . . . . . AOE 25 | . . . 6 . . . . 4 . . 4 . . . . . . . . . . . . 8 . . . . 3 . . . Classes Destroyed 14 | . . 2 4 . . . . . 4 . . . 1 1 . . 1 . . . . . . 1 . . . . . . . . Worker 8 | . . . . . . . . . 1 . . . . . . 3 . 1 . . . . 1 . . . 2 . . . . . Builder 1 | . . . 1 . . . . . . . . . . . . . . . . . . . . . . . . . . . . . Hauler 23 | . . . 3 . . . 1 1 2 . 4 . . . . 1 . 3 . . . . 2 1 . . . 4 . . 1 . Recycler 4 | . . 2 . . . . . . . . 2 . . . . . . . . . . . . . . . . . . . . . Mechanic 1 | . . . . . . . . . 1 . . . . . . . . . . . . . . . . . . . . . . . Operator 1 | . . . 1 . . . . . . . . . . . . . . . . . . . . . . . . . . . . . Watcher 3 | . . . . . . . . . 1 . . . . . . 1 . 1 . . . . . . . . . . . . . . Swarmer 33 | . . 2 6 . . . . 4 4 . 4 . . . . 1 . . . . . . . 5 . . . . 4 . . 3 Grunt 13 | . . . 1 . . . . . . . . . . . 3 . 3 . . . . . . 6 . . . . . . . . Sentry 5 | . . . . . . . . . . . . . . . . . . . . . . . . 5 . . . . . . . . Programmer 5 | . . . . . . . . . 1 . . . 1 . . . . . . . . . . . . . . 1 . . . 2 Behemoth 5 | . . . . . . . . . . . . . . . . . 1 . . . . . . 2 . . . 1 . . . 1 Decomposer 1 | . . . . . . . . . . . . 1 . . . . . . . . . . . . . . . . . . . . Thug 1 | . . . 1 . . . . . . . . . . . . . . . . . . . . . . . . . . . . . Butcher 1 | . . . . . . . . . . . . . . 1 . . . . . . . . . . . . . . . . . . Mutant 1 | . . . . . . . . . . . . . 1 . . . . . . . . . . . . . . . . . . . Best Kill Streak 9 | . . 4 9 . . . 1 4 4 . 7 . 2 1 3 5 2 3 . . 1 . 1 8 . . 2 2 3 1 1 3 Combat Bots Only 8 | . . 2 7 . . . . 4 4 . 4 . 2 1 3 1 2 . . . . . . 8 . . . 1 3 1 . 3 Max Kills in Single Turn 4 | . . 1 4 . . . 1 3 1 . 3 1 1 1 1 1 1 1 . . 1 . 1 2 1 . 2 1 2 1 1 1 Gunslinging . | . . . . . . . . . . . . . . . . . . . . . . . . . . . . . . . . . Exploded 3 | . . . 3 . . . . 3 . . 2 . . . . . . . . . . . . 2 . . . . 2 . . . Melee 1 | . . . . . . . . . . . . . 1 1 1 1 1 . . . . . . 1 . . . 1 1 1 . 1 Uniques/NPCs Destroyed 4 | . . . . . . . . . . . . . . 1 . . . . . . 1 . . . 1 . . . . 1 . . NK-0LA (-7/Zion) Data Miner (-6/Data Miner) A7 (-5/Cetus) A5 (-4/Lab) Combat | -11 -10 -10 -9 -9 -9 -8 -8 -8 -7 -7 -7 -7 -7 -7 -6 -6 -6 -6 -6 -6 -6 -5 -5 -5 -5 -5 -5 -4 -4 -4 -3 -3 -------- Run | Scr Mat Min Mat Min Exi Min Mat Sto Fac Was Fac Low Low Zio Pro Fac Gar Fac Low Low Dat Pro Fac Ext Cet Arc Hub Fac Arm Lab Res Gar Damage Taken 3959 | . . 58 144 77 . 33 15 194 337 . 190 . 32 45 58 86 250 106 42 . 181 20 . 512 25 53 240 242 249 236 9 525 Core 664 | . . 19 17 18 . . . 66 45 . 16 . 16 . . 23 80 6 20 . 89 . . 87 . . 91 12 . . 9 50 Absorbed by Shields 404 | . . . . . . . . . . . . . . . . . . . . . . . . 40 . . . 22 . . 9 333 Core Remaining (%) 89 | 100 . 92 . . . 91 . 88 . . . . . . 89 . . . . . . 74 . . . . 82 . . 98 . . Volleys Fired 106 | . . 9 12 2 . . 5 15 30 . 10 . . . . . . . . . . . . 18 . 1 2 . 2 . . . Largest 2 | . . 2 2 2 . . 2 2 2 . 2 . . . . . . . . . . . . 1 . 1 1 . 1 . . . Hottest 91 | . . 90 90 60 . . 40 46 91 . 91 . . . . . . . . . . . . 36 . 30 35 . 36 . . . Shots Fired 165 | . . 18 17 4 . . 8 18 60 1 16 . . . . . . . . . . . . 18 . 1 2 . 2 . . . Gun 112 | . . 18 13 4 . . 8 12 47 1 7 . . . . . . . . . . . . . . . 2 . . . . . Cannon 20 | . . . . . . . . . 13 . 7 . . . . . . . . . . . . . . . . . . . . . Launcher 23 | . . . 4 . . . . 6 . . 2 . . . . . . . . . . . . 9 . . . . 2 . . . Special 10 | . . . . . . . . . . . . . . . . . . . . . . . . 9 . 1 . . . . . . Kinetic 79 | . . . . 2 . . 8 12 47 1 7 . . . . . . . . . . . . . . . 2 . . . . . Thermal 34 | . . 9 5 . . . . . 13 . 7 . . . . . . . . . . . . . . . . . . . . . Explosive 23 | . . . 4 . . . . 6 . . 2 . . . . . . . . . . . . 9 . . . . 2 . . . Electromagnetic 19 | . . 9 8 2 . . . . . . . . . . . . . . . . . . . . . . . . . . . . Robot Hit Streak 16 | . . 8 7 1 . . 2 5 8 . 7 . . . . . . . . . . . . 15 . 16 . . . . . . Robot Miss Streak 4 | . . 3 2 1 . . 2 1 4 . 1 . . . . . . . . . . . . 1 . . . . . . . . Penetration Max . | . . . . . . . . . . . . . . . . . . . . . . . . . . . . . . . . . Secondary Targets . | . . . . . . . . . . . . . . . . . . . . . . . . . . . . . . . . . Shots Hit Robots 224 | . . 11 10 1 . . 4 7 37 . 23 1 6 4 6 7 8 14 . . 2 . 8 38 1 2 . 14 1 6 1 12 Core Hits 143 | . . 6 18 . . . 2 5 17 . 15 . 2 3 3 3 4 6 . . 1 . 3 27 1 1 3 6 4 4 1 8 Critical Hits 16 | . . . . . . . . . . . 1 . . . 2 3 1 1 . . . . 2 3 . . . 1 . . . 2 Critical Kills 10 | . . . . . . . . . . . 1 . . . 2 3 1 . . . . . 1 1 . . . . . . . 1 Critical Parts Destroyed 5 | . . . . . . . . . . . . . . . . . . 1 . . . . . 2 . . . 1 . . . 1 Melee Attacks 225 | . . . . . . . . . . . 18 1 6 4 9 9 16 23 2 3 3 . 15 26 5 1 . 27 13 12 5 27 Impact . | . . . . . . . . . . . . . . . . . . . . . . . . . . . . . . . . . Slashing . | . . . . . . . . . . . . . . . . . . . . . . . . . . . . . . . . . Piercing 216 | . . . . . . . . . . . 18 1 6 4 9 9 16 18 2 3 2 . 12 26 5 1 . 27 13 12 5 27 Sneak Attacks 43 | . . . . . . . . . . . 4 1 2 1 1 6 . 6 . . 2 . 5 8 1 . . 5 . . 1 . Combat Hostiles 10 | . . . . . . . . . . . . . 2 . 1 2 . . . . . . . 4 . . . 1 . . . . Follow-up Attacks 12 | . . . . . . . . . . . . . . 1 . . 3 . . . . . . 2 . . . 1 1 2 . 2 Damage Inflicted 14205 | 4 . 128 720 . . . 50 285 601 . 1376 154 489 284 496 1047 294 1013 . . 178 . 595 3010 142 73 239 1424 315 590 159 539 Guns 956 | . . 128 119 . . . 50 80 489 . 90 . . . . . . . . . . . . . . . . . . . . . Cannons 214 | . . . . . . . . . 112 . 102 . . . . . . . . . . . . . . . . . . . . . Explosions 2466 | . . . 601 . . . . 205 . . 342 . . . . . . . . . . . . 827 . . 239 . 252 . . . Melee 10565 | . . . . . . . . . . . 842 154 489 284 496 1047 294 1013 . . 178 . 595 2183 142 73 . 1424 63 590 159 539 Ramming 4 | 4 . . . . . . . . . . . . . . . . . . . . . . . . . . . . . . . . Kinetic 709 | . . . . . . . 50 80 489 . 90 . . . . . . . . . . . . . . . . . . . . . Thermal 453 | . . 60 179 . . . . . 112 . 102 . . . . . . . . . . . . . . . . . . . . . Explosive 2085 | . . . 459 . . . . 205 . . 342 . . . . . . . . . . . . 827 . . . . 252 . . . Electromagnetic 389 | . . 68 82 . . . . . . . . . . . . . . . . . . . . . . . 239 . . . . . Impact . | . . . . . . . . . . . . . . . . . . . . . . . . . . . . . . . . . Slashing . | . . . . . . . . . . . . . . . . . . . . . . . . . . . . . . . . . Piercing 10565 | . . . . . . . . . . . 842 154 489 284 496 1047 294 1013 . . 178 . 595 2183 142 73 . 1424 63 590 159 539 Highest Corruption 9 | . . . . . . . . . . 8 9 9 9 9 . . . . . . . . . . . . 1 . 4 4 . 1 Average Corruption 7 | . . . . . . . . . . 8 8 9 9 9 . . . . . . . . . . . . 1 . 3 2 . 1 Corruption Purged . | . . . . . . . . . . . . . . . . . . . . . . . . . . . . . . . . . Effects 44 | . . . . . . . . . . 1 31 3 4 2 . . . . . . . . . . . . . . 3 . . . Message Errors 11 | . . . . . . . . . . . 8 . 2 . . . . . . . . . . . . . . . 1 . . . Matter Fused 7 | . . . . . . . . . . . 3 2 1 1 . . . . . . . . . . . . . . . . . . Heat Flow Errors 4 | . . . . . . . . . . . 3 1 . . . . . . . . . . . . . . . . . . . . Energy Discharges 6 | . . . . . . . . . . . 4 . 1 1 . . . . . . . . . . . . . . . . . . Data Loss (minor) 6 | . . . . . . . . . . . 4 . . . . . . . . . . . . . . . . . 2 . . . Data Loss (major) 3 | . . . . . . . . . . . 3 . . . . . . . . . . . . . . . . . . . . . Misfires 1 | . . . . . . . . . . 1 . . . . . . . . . . . . . . . . . . . . . . Targeting Errors 5 | . . . . . . . . . . . 5 . . . . . . . . . . . . . . . . . . . . . Weapon Failures 1 | . . . . . . . . . . . 1 . . . . . . . . . . . . . . . . . . . . . Overload Shots . | . . . . . . . . . . . . . . . . . . . . . . . . . . . . . . . . . Overflow Damage 1638 | . . . . . . . . . . . 223 150 212 . 179 521 . 26 . . . . . 64 . . . 198 . 65 . . Projectiles . | . . . . . . . . . . . . . . . . . . . . . . . . . . . . . . . . . Explosions 28 | . . . . . . . . . . . . . . . . . . . . . . . . 28 . . . . . . . . Melee 1610 | . . . . . . . . . . . 223 150 212 . 179 521 . 26 . . . . . 36 . . . 198 . 65 . . Knockbacks . | . . . . . . . . . . . . . . . . . . . . . . . . . . . . . . . . . Impact . | . . . . . . . . . . . . . . . . . . . . . . . . . . . . . . . . . Kinetic . | . . . . . . . . . . . . . . . . . . . . . . . . . . . . . . . . . Secondary . | . . . . . . . . . . . . . . . . . . . . . . . . . . . . . . . . . Self-Inflicted Damage 224 | . . . 44 . . . . . . . . . . . . . . . . . . . . 77 . . 103 . . . . . Shots 5 | . . . 2 . . . . . . . . . . . . . . . . . . . . 2 . . 1 . . . . . Rammed 1 | 1 . . . . . . . . . . . . . . . . . . . . . . . . . . . . . . . . Targets Rammed 1 | 1 . . . . . . . . . . . . . . . . . . . . . . . . . . . . . . . . Kicked . | . . . . . . . . . . . . . . . . . . . . . . . . . . . . . . . . . Crushed . | . . . . . . . . . . . . . . . . . . . . . . . . . . . . . . . . . Highest Temperature 249 | . . 232 72 6 . 5 . 15 97 12 249 235 27 31 11 1 . . . . . . . . . . . . 2 . . . Average Temperature 32 | . . 129 20 4 . 3 . 5 37 5 82 29 10 12 3 1 . . . . . . . . . . . . 2 . . . Received Heat Transfer 547 | . . . 15 9 . 18 9 54 18 . 27 . 18 6 27 36 75 12 . . 24 9 . 85 . 9 18 70 . . . 8 Siege Activations . | . . . . . . . . . . . . . . . . . . . . . . . . . . . . . . . . . Robots Corrupted . | . . . . . . . . . . . . . . . . . . . . . . . . . . . . . . . . . Combat Hostiles . | . . . . . . . . . . . . . . . . . . . . . . . . . . . . . . . . . Parts Fried 2 | . . . . . . . . . . . . . 1 . . . . . . . . . . . . . 1 . . . . . Impact Corruptions . | . . . . . . . . . . . . . . . . . . . . . . . . . . . . . . . . . Robots Melted . | . . . . . . . . . . . . . . . . . . . . . . . . . . . . . . . . . Combat Hostiles . | . . . . . . . . . . . . . . . . . . . . . . . . . . . . . . . . . Parts Melted 1 | . . . . . . . . . . . . . . . . . . . . . . . . 1 . . . . . . . . Heat Transferred 866 | . . 185 311 . . . . . 185 . 185 . . . . . . . . . . . . . . . . . . . . . Parts Sabotaged . | . . . . . . . . . . . . . . . . . . . . . . . . . . . . . . . . . Parts Stolen . | . . . . . . . . . . . . . . . . . . . . . . . . . . . . . . . . . Parts Stripped . | . . . . . . . . . . . . . . . . . . . . . . . . . . . . . . . . . Power Chain Reactions 2 | . . . 2 . . . . . . . . . . . . . . . . . . . . . . . . . . . . . Missiles Intercepted . | . . . . . . . . . . . . . . . . . . . . . . . . . . . . . . . . . Alert | -11 -10 -10 -9 -9 -9 -8 -8 -8 -7 -7 -7 -7 -7 -7 -6 -6 -6 -6 -6 -6 -6 -5 -5 -5 -5 -5 -5 -4 -4 -4 -3 -3 ------- Run | Scr Mat Min Mat Min Exi Min Mat Sto Fac Was Fac Low Low Zio Pro Fac Gar Fac Low Low Dat Pro Fac Ext Cet Arc Hub Fac Arm Lab Res Gar Peak Influence 749 | . 5 51 459 208 . 15 27 243 175 40 520 . . . . 749 649 663 . . . . 51 428 320 90 356 637 445 . 28 188 Average Influence 207 | . 3 38 224 194 . 14 17 66 71 27 330 . . . . 430 591 261 . . . . 18 189 218 32 84 271 343 . 6 84 Maximum Alert Level 3 | . . . 2 1 . . . 1 . . 2 . . . . 3 2 2 . . . . . 2 1 . 1 2 2 . . . Low Security (%) 58 | 100 100 100 41 97 . 100 100 90 100 100 25 . . . . 24 . 58 . . . . 100 37 42 100 82 59 . . 100 100 Level 1 25 | . . . 30 2 . . . 9 . . 44 . . . . 30 . 31 . . . . . 58 57 . 17 7 79 . . . Level 2 13 | . . . 28 . . . . . . . 30 . . . . . 100 9 . . . . . 4 . . . 32 20 . . . Level 3 2 | . . . . . . . . . . . . . . . . 44 . . . . . . . . . . . . . . . . Level 4 . | . . . . . . . . . . . . . . . . . . . . . . . . . . . . . . . . . Level 5 . | . . . . . . . . . . . . . . . . . . . . . . . . . . . . . . . . . High Security . | . . . . . . . . . . . . . . . . . . . . . . . . . . . . . . . . . Max Security . | . . . . . . . . . . . . . . . . . . . . . . . . . . . . . . . . . Squads Dispatched 21 | . . . 1 . . . . 4 2 . 5 . . . . 2 . 1 . . . 1 2 . . . . 2 . . 1 . Investigation 7 | . . . . . . . . 2 . . 3 . . . . 1 . . . . . . . . . . . 1 . . . . Extermination 2 | . . . . . . . . . 1 . 1 . . . . . . . . . . . . . . . . . . . . . Reinforcement 11 | . . . 1 . . . . 2 1 . 1 . . . . 1 . 1 . . . . 2 . . . . 1 . . 1 . Assault 1 | . . . . . . . . . . . . . . . . . . . . . . 1 . . . . . . . . . . Garrison . | . . . . . . . . . . . . . . . . . . . . . . . . . . . . . . . . . Intercept . | . . . . . . . . . . . . . . . . . . . . . . . . . . . . . . . . . Construction Impeded . | . . . . . . . . . . . . . . . . . . . . . . . . . . . . . . . . . Haulers Reinforced 5 | . . . . . . . . . 1 . 1 . . . . . . . . . . . 2 . . . . 1 . . . . Stealth | -11 -10 -10 -9 -9 -9 -8 -8 -8 -7 -7 -7 -7 -7 -7 -6 -6 -6 -6 -6 -6 -6 -5 -5 -5 -5 -5 -5 -4 -4 -4 -3 -3 --------- Run | Scr Mat Min Mat Min Exi Min Mat Sto Fac Was Fac Low Low Zio Pro Fac Gar Fac Low Low Dat Pro Fac Ext Cet Arc Hub Fac Arm Lab Res Gar Distress Signals 16 | . . . . . . . . 2 . . 3 . . . . 1 . . . . . . . 2 2 . . 4 2 . . . Communications Jammed . | . . . . . . . . . . . . . . . . . . . . . . . . . . . . . . . . . Distress Signals . | . . . . . . . . . . . . . . . . . . . . . . . . . . . . . . . . . Times Spotted 294 | . . 3 18 3 . 3 3 26 9 4 30 . 5 3 8 15 7 7 7 . 4 12 4 28 12 3 5 35 23 1 6 10 Peak Tracking Total 17 | . . 3 9 2 . 3 2 13 4 4 7 . 3 1 4 9 6 2 7 . 4 12 2 6 5 1 5 17 11 1 3 5 Tactical Retreats 44 | . . . 1 . . . 1 6 2 . 8 . . . . 4 4 2 . . . 1 1 . . . . 8 3 . 1 2 Traps | -11 -10 -10 -9 -9 -9 -8 -8 -8 -7 -7 -7 -7 -7 -7 -6 -6 -6 -6 -6 -6 -6 -5 -5 -5 -5 -5 -5 -4 -4 -4 -3 -3 ------- Run | Scr Mat Min Mat Min Exi Min Mat Sto Fac Was Fac Low Low Zio Pro Fac Gar Fac Low Low Dat Pro Fac Ext Cet Arc Hub Fac Arm Lab Res Gar Traps Triggered 21 | . . . . . . . . 2 3 . 2 . . . . 1 2 1 . . . . 1 1 . . 1 1 3 . . 3 Indirectly 1 | . . . . . . . . . . . . . . . . . . . . . . . . . . . 1 . . . . . Trap Hack Attempts 1 | . . . . . . . . . . . . . . . . . . . . . . . 1 . . . . . . . . . Triggered . | . . . . . . . . . . . . . . . . . . . . . . . . . . . . . . . . . Disarmed . | . . . . . . . . . . . . . . . . . . . . . . . . . . . . . . . . . Reprogrammed 7 | . . . . . . . . . . . . . . . . . . . . . . . 1 2 . . . 4 . . . . Reused 1 | . . . . . . . . . . . . . . . . . . . . . . . . . . . . 1 . . . . Traps Extracted . | . . . . . . . . . . . . . . . . . . . . . . . . . . . . . . . . . Installed . | . . . . . . . . . . . . . . . . . . . . . . . . . . . . . . . . . Triggered 7 | . . . . . . . . . . . . . . . . . . . 2 3 . 1 . . . . . 1 . . . . Machines | -11 -10 -10 -9 -9 -9 -8 -8 -8 -7 -7 -7 -7 -7 -7 -6 -6 -6 -6 -6 -6 -6 -5 -5 -5 -5 -5 -5 -4 -4 -4 -3 -3 ---------- Run | Scr Mat Min Mat Min Exi Min Mat Sto Fac Was Fac Low Low Zio Pro Fac Gar Fac Low Low Dat Pro Fac Ext Cet Arc Hub Fac Arm Lab Res Gar Machines Disabled 20 | . . . 3 . . . . 1 1 . 1 . . . . . 1 . . . . . 1 5 1 . 4 . 1 1 . . Max in Single Turn 4 | . . . 1 . . . . 1 1 . 1 . . . . . 1 . . . . . 1 2 1 . 4 . 1 1 . . Garrison Access 4 | . . . . . . . . 1 . . . . . . . 1 . . . . . . 1 . . . . 1 . . . . Garrison Relay 1 | . . . . . . . . . . . . . . . . . 1 . . . . . . . . . . . . . . . Network Hub 1 | . . . . . . . . . . . . . . . . . . . . . . . . . . . 1 . . . . . Machines Sabotaged . | . . . . . . . . . . . . . . . . . . . . . . . . . . . . . . . . . Garrisons Compromised . | . . . . . . . . . . . . . . . . . . . . . . . . . . . . . . . . . Overloaded Fab Kills . | . . . . . . . . . . . . . . . . . . . . . . . . . . . . . . . . . Fab Network Shutdowns 4 | . . . . . . . . . . . 1 . . . . 1 . 1 . . . . . . . . . 1 . . . . Hacking | -11 -10 -10 -9 -9 -9 -8 -8 -8 -7 -7 -7 -7 -7 -7 -6 -6 -6 -6 -6 -6 -6 -5 -5 -5 -5 -5 -5 -4 -4 -4 -3 -3 --------- Run | Scr Mat Min Mat Min Exi Min Mat Sto Fac Was Fac Low Low Zio Pro Fac Gar Fac Low Low Dat Pro Fac Ext Cet Arc Hub Fac Arm Lab Res Gar Machines Accessed 90 | . 1 . 3 . 2 . . 6 6 . 8 1 . . . 10 . 9 . . 4 . 5 19 2 . . 7 4 . 3 . Terminals 59 | . 1 . 3 . . . . 5 1 . 5 1 . . . 6 . 5 . . . . 3 19 2 . . 4 2 . 2 . Fabricators 15 | . . . . . . . . . 4 . 1 . . . . 2 . 4 . . . . 1 . . . . 1 2 . . . Repair Stations 2 | . . . . . . . . . . . 2 . . . . . . . . . . . . . . . . . . . . . Recycling Units . | . . . . . . . . . . . . . . . . . . . . . . . . . . . . . . . . . Scanalyzers 2 | . . . . . . . . . 1 . . . . . . . . . . . . . . . . . . 1 . . . . Garrison Access 6 | . . . . . . . . 1 . . . . . . . 2 . . . . . . 1 . . . . 1 . . 1 . Total Hacks 306 | . 2 . 9 . 8 . . 18 17 . 29 1 . . . 30 . 18 . . 26 . 23 42 10 . . 39 26 . 8 . Successful 221 | . 1 . 6 . 8 . . 12 12 . 13 1 . . . 20 . 10 . . 26 . 17 38 7 . . 23 19 . 8 . Failed 84 | . 1 . 3 . . . . 6 5 . 16 . . . . 10 . 8 . . . . 6 4 3 . . 15 7 . . . Catastrophic 8 | . . . . . . . . 1 . . 4 . . . . 1 . 1 . . . . . . . . . 1 . . . . Database Lockouts 1 | . . . . . . . . . . . . . . . . . . . . . . . . . . . . 1 . . . . Manual 125 | . 1 . 6 . 1 . . 8 3 . 6 . . 1 . 16 . 6 . . . . 16 21 4 . . 20 13 . 3 . Terminals 206 | . 2 . 9 . . . . 17 5 . 20 1 . . . 21 . 12 . . . . 17 42 10 . . 27 16 . 7 . Fabricators 48 | . . . . . . . . . 9 . 4 . . . . 5 . 6 . . . . 5 . . . . 9 10 . . . Repair Stations 5 | . . . . . . . . . . . 5 . . . . . . . . . . . . . . . . . . . . . Recycling Units . | . . . . . . . . . . . . . . . . . . . . . . . . . . . . . . . . . Scanalyzers 5 | . . . . . . . . . 3 . . . . . . . . . . . . . . . . . . 2 . . . . Garrison Access 8 | . . . . . . . . 1 . . . . . . . 4 . . . . . . 1 . . . . 1 . . 1 . Terminal Hacks 141 | . 1 . 3 . 8 . . 9 3 . 6 1 . . . 10 . 6 . . 26 . 10 28 6 . . 11 6 . 7 . Record 23 | . . . . . 7 . . . . . . 1 . . . . . . . . 11 . . . 4 . . . . . . . Part Schematic 14 | . . . . . . . . . 1 . . . . . . 1 . . . . 5 . 5 . . . . 1 1 . . . Robot Schematic 7 | . . . . . . . . . . . . . . . . . . . . . 7 . . . . . . . . . . . Robot Analysis 3 | . . . . . . . . . . . . . . . . 1 . . . . . . . 2 . . . . . . . . Prototype ID Bank 3 | . . . . . . . . . . . . . . . . . . . . . 3 . . . . . . . . . . . Open Door 15 | . . . . . . . . . . . . . . . . . . . . . . . . 14 1 . . . . . . . Level Access Points 1 | . . . . . . . . . . . . . . . . . . . . . . . . . . . . . . . 1 . Branch Access Points 7 | . . . 1 . . . . . . . 1 . . . . 1 . 1 . . . . 1 . . . . 1 . . 1 . Emergency Access Points 1 | . . . . . . . . . . . . . . . . 1 . . . . . . . . . . . . . . . . Machine Index 4 | . . . . . . . . . . . 1 . . . . . . 1 . . . . . . . . . 1 1 . . . Terminal Index 5 | . . . . . . . . . . . . . . . . 1 . . . . . . 1 1 . . . . 1 . 1 . Fabricator Index 5 | . . . . . . . . . 1 . . . . . . 1 . 1 . . . . 1 . . . . 1 . . . . Alert Level 3 | . . . . . . . . 1 . . . . . . . . . . . . . . . 2 . . . . . . . . Unreport Threat 13 | . . . . . . . . 2 . . 1 . . . . . . 2 . . . . . 4 1 . . 1 . . 2 . Locate Traps 11 | . . . . . . . . . 1 . 2 . . . . 1 . . . . . . 2 2 . . . 2 1 . . . Reprogram Traps 4 | . . . . . . . . . . . . . . . . . . . . . . . . 2 . . . 2 . . . . Recall Extermination 1 | . . . . . . . . . . . 1 . . . . . . . . . . . . . . . . . . . . . Hauler Manifests 8 | . 1 . 1 . . . . 1 . . . . . . . 2 . . . . . . . 1 . . . . 1 . 1 . Registered Components 1 | . . . . . . . . 1 . . . . . . . . . . . . . . . . . . . . . . . . Registered Prototypes 4 | . . . 1 . . . . 1 . . . . . . . . . . . . . . . . . . . 1 1 . . . Zone Layout 7 | . . . . . . . . 3 . . . . . . . 1 . 1 . . . . . . . . . 1 . . 1 . EX-Prototype ID Bank 1 | . . . . . 1 . . . . . . . . . . . . . . . . . . . . . . . . . . . Fabricator Hacks 27 | . . . . . . . . . 5 . 2 . . . . 5 . 2 . . . . 3 . . . . 4 6 . . . Network Status 1 | . . . . . . . . . 1 . . . . . . . . . . . . . . . . . . . . . . . Load Schematic 12 | . . . . . . . . . 3 . 1 . . . . 2 . 1 . . . . 1 . . . . 1 3 . . . Build 14 | . . . . . . . . . 1 . 1 . . . . 3 . 1 . . . . 2 . . . . 3 3 . . . Repair Station Hacks 4 | . . . . . . . . . . . 4 . . . . . . . . . . . . . . . . . . . . . Scan Component 2 | . . . . . . . . . . . 2 . . . . . . . . . . . . . . . . . . . . . Repair 2 | . . . . . . . . . . . 2 . . . . . . . . . . . . . . . . . . . . . Recycling Unit Hacks . | . . . . . . . . . . . . . . . . . . . . . . . . . . . . . . . . . Scanalyzer 5 | . . . . . . . . . 3 . . . . . . . . . . . . . . . . . . 2 . . . . Insert Component 2 | . . . . . . . . . 1 . . . . . . . . . . . . . . . . . . 1 . . . . Analyze 3 | . . . . . . . . . 2 . . . . . . . . . . . . . . . . . . 1 . . . . Garrison Access Hacks 6 | . . . . . . . . 1 . . . . . . . 2 . . . . . . 1 . . . . 1 . . 1 . Unlock Access 2 | . . . . . . . . . . . . . . . . 1 . . . . . . . . . . . . . . 1 . Seal Access 4 | . . . . . . . . 1 . . . . . . . 1 . . . . . . 1 . . . . 1 . . . . Unauthorized Hacks 38 | . . . 3 . . . . 2 1 . 1 . . . . 3 . 2 . . . . 3 10 1 . . 5 7 . . . Terminals 29 | . . . 3 . . . . 2 1 . 1 . . . . 2 . 2 . . . . 1 10 1 . . 3 3 . . . Track 3 | . . . 1 . . . . . . . . . . . . . . . . . . . . 1 . . . . 1 . . . Assimilate 8 | . . . 1 . . . . 1 . . . . . . . 1 . 2 . . . . . 3 . . . . . . . . Botnet 11 | . . . 1 . . . . 1 1 . . . . . . 1 . . . . . . 1 2 1 . . 2 1 . . . Disrupt 7 | . . . . . . . . . . . 1 . . . . . . . . . . . . 4 . . . 1 1 . . . Fabricators 8 | . . . . . . . . . . . . . . . . . . . . . . . 2 . . . . 2 4 . . . Prioritize 4 | . . . . . . . . . . . . . . . . . . . . . . . 1 . . . . 1 2 . . . Siphon 4 | . . . . . . . . . . . . . . . . . . . . . . . 1 . . . . 1 2 . . . Repair Stations . | . . . . . . . . . . . . . . . . . . . . . . . . . . . . . . . . . Recycling Units . | . . . . . . . . . . . . . . . . . . . . . . . . . . . . . . . . . Scanalyzers . | . . . . . . . . . . . . . . . . . . . . . . . . . . . . . . . . . Garrison Access 1 | . . . . . . . . . . . . . . . . 1 . . . . . . . . . . . . . . . . Reprogram 1 | . . . . . . . . . . . . . . . . 1 . . . . . . . . . . . . . . . . Data Cores Recovered . | . . . . . . . . . . . . . . . . . . . . . . . . . . . . . . . . . Used . | . . . . . . . . . . . . . . . . . . . . . . . . . . . . . . . . . Hacking Detections 56 | . 1 . 1 . . . . 5 5 . 6 . . . . 8 . 9 . . . . 4 7 2 . . 3 3 . 2 . Full Trace Events 3 | . . . . . . . . 1 . . 2 . . . . . . . . . . . . . . . . . . . . . Feedback Events 1 | . . . . . . . . . . . 1 . . . . . . . . . . . . . . . . . . . . . Corruption 1 | . . . . . . . . . . . 1 . . . . . . . . . . . . . . . . . . . . . Feedback Blocked . | . . . . . . . . . . . . . . . . . . . . . . . . . . . . . . . . . Robot Schematics Acquired 7 | . . . . . . . . . . . . . . . . . . . . . 7 . . . . . . . . . . . Robots Built 2 | . . . . . . . . . . . . . . . . . . . . . . . . . . . . . 2 . . . Matter 238 | . . . . . . . . . . . . . . . . . . . . . . . . . . . . . 238 . . . Time 42 | . . . . . . . . . . . . . . . . . . . . . . . . . . . . . 42 . . . Total Robot Build Rating 12 | . . . . . . . . . . . . . . . . . . . . . . . . . . . . . 12 . . . Part Schematics Acquired 16 | . . . . . . . . . 2 . . . . . . 1 . . . . 5 . 5 . . . . 2 1 . . . Parts Built 11 | . . . . . . . . . . . 1 . . . . 2 . 1 . . . . 2 . . . . 3 2 . . . Matter 2857 | . . . . . . . . . 186 . 186 . . . . 504 . 252 . . . . 426 . . . . 877 426 . . . Time 779 | . . . . . . . . . 49 . 49 . . . . 201 . 67 . . . . 76 . . . . 185 152 . . . Total Part Build Rating 55 | . . . . . . . . . . . 2 . . . . 8 . 4 . . . . 10 . . . . 21 10 . . . Parts Repaired 2 | . . . . . . . . . . . 2 . . . . . . . . . . . . . . . . . . . . . Time 163 | . . . . . . . . . . . 163 . . . . . . . . . . . . . . . . . . . . . Parts Recycled . | . . . . . . . . . . . . . . . . . . . . . . . . . . . . . . . . . Recycled Matter . | . . . . . . . . . . . . . . . . . . . . . . . . . . . . . . . . . Retrieved Matter . | . . . . . . . . . . . . . . . . . . . . . . . . . . . . . . . . . Retrieved Components . | . . . . . . . . . . . . . . . . . . . . . . . . . . . . . . . . . Parts Scanalyzed 2 | . . . . . . . . . 1 . . . . . . . . . . . . . . . . . . 1 . . . . Part Schematics Acquired 2 | . . . . . . . . . 1 . . . . . . . . . . . . . . . . . . 1 . . . . Parts Damaged . | . . . . . . . . . . . . . . . . . . . . . . . . . . . . . . . . . Bothacking | -11 -10 -10 -9 -9 -9 -8 -8 -8 -7 -7 -7 -7 -7 -7 -6 -6 -6 -6 -6 -6 -6 -5 -5 -5 -5 -5 -5 -4 -4 -4 -3 -3 ------------ Run | Scr Mat Min Mat Min Exi Min Mat Sto Fac Was Fac Low Low Zio Pro Fac Gar Fac Low Low Dat Pro Fac Ext Cet Arc Hub Fac Arm Lab Res Gar Used RIF Installer 1 | . . . . . . . . . . . . . . . . . 1 . . . . . . . . . . . . . . . Robots Hacked 6 | . . . . . . . . . . . . . . . . . . 1 . . 1 . 3 . . 1 . . . . . . Non-combat 4 | . . . . . . . . . . . . . . . . . . 1 . . . . 2 . . 1 . . . . . . Combat 2 | . . . . . . . . . . . . . . . . . . . . . 1 . 1 . . . . . . . . . Robot Hacks Applied 7 | . . . . . . . . . . . . . . . . . . 2 . . 1 . 3 . . 1 . . . . . . parse_system 1 | . . . . . . . . . . . . . . . . . . . . . 1 . . . . . . . . . . . drop_inventory 2 | . . . . . . . . . . . . . . . . . . . . . . . 2 . . . . . . . . . check_alert 1 | . . . . . . . . . . . . . . . . . . 1 . . . . . . . . . . . . . . purge_threat 1 | . . . . . . . . . . . . . . . . . . . . . . . . . . 1 . . . . . . locate_traps 1 | . . . . . . . . . . . . . . . . . . 1 . . . . . . . . . . . . . . overwrite_iff 1 | . . . . . . . . . . . . . . . . . . . . . . . 1 . . . . . . . . . Relay Couplers Released 6 | . . . . . . . . . . . . . . . . . 3 . . . . . 3 . . . . . . . . . Machine Destruction 6 | . . . . . . . . . . . . . . . . . 3 . . . . . 3 . . . . . . . . . Attached 3 | . . . . . . . . . . . . . . . . . . 1 . . . . 2 . . . . . . . . . Robots Rewired 7 | . . . . . . . . . . . . . . . . . . . . . . . . 7 . . . . . . . . Allies Hacked 1 | . . . . . . . . . . . . . . . . . . . . . . . . . . . . . 1 . . . Hacks Repelled . | . . . . . . . . . . . . . . . . . . . . . . . . . . . . . . . . . Allies | -11 -10 -10 -9 -9 -9 -8 -8 -8 -7 -7 -7 -7 -7 -7 -6 -6 -6 -6 -6 -6 -6 -5 -5 -5 -5 -5 -5 -4 -4 -4 -3 -3 -------- Run | Scr Mat Min Mat Min Exi Min Mat Sto Fac Was Fac Low Low Zio Pro Fac Gar Fac Low Low Dat Pro Fac Ext Cet Arc Hub Fac Arm Lab Res Gar Total Allies 45 | . . 2 1 . . . . 1 . . . . . 2 . 1 . 1 . . . . 1 28 5 . . . 3 . . . Largest Group 26 | . . 2 3 . . . . 1 . . . . . 2 2 3 . 1 . . . . 1 26 18 8 1 . 3 . . . Highest-Rated Group 919 | . . 50 60 . . . . 10 . . . . . 188 188 214 . 26 . . . . 29 845 919 395 94 . 172 . . . Highest-Rated Ally 156 | . . 31 31 . . . . 10 . . . . . 94 94 94 . 26 . . . . 29 156 156 94 94 . 64 . . . Total Orders 1 | . . . . . . . . . . . . . . . . . 1 . . . . . . . . . . . . . . . EXPLORE 1 | . . . . . . . . . . . . . . . . . 1 . . . . . . . . . . . . . . . Ally Attacks 353 | . . . 8 . . . . . . . . . . 9 28 19 . . . . . . 2 129 108 39 3 . 8 . . . Total Damage 9049 | . . . 107 . . . . . . . . . . 211 948 538 . . . . . . 38 2667 2522 1592 140 . 286 . . . Kills 41 | . . . 4 . . . . . . . . . . 1 5 3 . . . . . . . 11 10 4 1 . 2 . . . Allies Corrupted 1 | . . . . . . . . . . . . . . . . . . . . . . . . 1 . . . . . . . . Allies Melted . | . . . . . . . . . . . . . . . . . . . . . . . . . . . . . . . . . Intel | -11 -10 -10 -9 -9 -9 -8 -8 -8 -7 -7 -7 -7 -7 -7 -6 -6 -6 -6 -6 -6 -6 -5 -5 -5 -5 -5 -5 -4 -4 -4 -3 -3 ------- Run | Scr Mat Min Mat Min Exi Min Mat Sto Fac Was Fac Low Low Zio Pro Fac Gar Fac Low Low Dat Pro Fac Ext Cet Arc Hub Fac Arm Lab Res Gar Robot Analysis Total 3 | . . . . . . . . . . . . . . . . 1 . . . . . . . 2 . . . . . . . . Derelict Logs Recovered 10 | . . 2 . 2 . . . . . . . 1 1 . 1 . . . 1 1 . 1 . . . . . . . . . . Drone Launches 1 | . . . . . . . . . . . . . . . . . 1 . . . . . . . . . . . . . . . Drone Recoveries 1 | . . . . . . . . . . . . . . . . . 1 . . . . . . . . . . . . . . . Exploration | -11 -10 -10 -9 -9 -9 -8 -8 -8 -7 -7 -7 -7 -7 -7 -6 -6 -6 -6 -6 -6 -6 -5 -5 -5 -5 -5 -5 -4 -4 -4 -3 -3 ------------- Run | Scr Mat Min Mat Min Exi Min Mat Sto Fac Was Fac Low Low Zio Pro Fac Gar Fac Low Low Dat Pro Fac Ext Cet Arc Hub Fac Arm Lab Res Gar Turns Passed 7813 | 72 144 245 213 185 134 25 93 273 493 26 693 95 115 490 463 375 237 331 86 121 35 63 392 668 309 82 62 453 419 109 81 231 Spaces Moved 13882 | 45 90 336 357 218 463 51 145 713 834 92 1206 275 337 1006 304 826 264 783 305 399 102 242 894 878 267 57 215 859 644 218 228 229 Core 13 | 10 . 3 . . . . . . . . . . . . . . . . . . . . . . . . . . . . . . Treads 157 | 35 90 32 . . . . . . . . . . . . . . . . . . . . . . . . . . . . . . Legs . | . . . . . . . . . . . . . . . . . . . . . . . . . . . . . . . . . Wheels . | . . . . . . . . . . . . . . . . . . . . . . . . . . . . . . . . . Hover . | . . . . . . . . . . . . . . . . . . . . . . . . . . . . . . . . . Flight 13712 | . . 301 357 218 463 51 145 713 834 92 1206 275 337 1006 304 826 264 783 305 399 102 242 894 878 267 57 215 859 644 218 228 229 Fastest Speed 23 | 50 160 37 29 29 29 29 27 27 27 27 26 26 26 26 26 23 23 23 24 24 24 24 24 24 24 24 24 24 24 24 24 24 Average Speed 27 | 135 160 49 33 29 29 29 27 27 27 27 26 26 26 26 26 23 23 23 24 24 24 24 24 24 24 24 24 24 24 24 24 24 Slowest Speed 160 | 160 160 160 34 29 29 29 27 27 32 27 27 26 26 26 26 24 23 24 24 24 24 24 24 24 24 24 24 24 24 24 24 24 Overloaded Moves . | . . . . . . . . . . . . . . . . . . . . . . . . . . . . . . . . . Propulsion Burnouts . | . . . . . . . . . . . . . . . . . . . . . . . . . . . . . . . . . Robots Hopped 123 | . . 4 12 1 . . . 8 18 . 23 . 3 . . 13 3 3 1 . 2 . 7 14 . . 1 10 . . . . Cave-ins Triggered . | . . . . . . . . . . . . . . . . . . . . . . . . . . . . . . . . . Exploration Rate (%) 46 | 3 21 77 31 59 71 16 12 84 21 78 27 46 63 83 43 23 42 25 52 49 77 43 24 83 82 72 27 24 43 99 9 35 Regions Visited 32 Branch Regions 19 Pre-discovered Areas 3 | . . . . . 1 . . . . . . . . 1 . . . . . . 1 . . . . . . . . . . . Known Exits Taken 13 | . . 1 1 . . . 1 . . . 1 1 1 . . 1 . 1 . . . 1 1 . . . 1 1 . . 1 . Unknown Exits Taken 16 | 1 1 . . 1 1 1 . 1 . . . . . 1 1 . . . 1 1 1 . . 1 1 1 . . 1 1 . . Scrap Searched 13 | . . 1 . . . . . . . . . 3 2 1 1 . . . 1 2 . 2 . . . . . . . . . . Spaces Dug 67 | . . . . . . . . 23 . . 5 . . . . 2 2 7 2 3 . . 4 . . . . 7 7 . 3 2 Terrain Destroyed 388 | . . . 30 . . . . 43 . . 27 . . . . 2 2 7 2 3 . . 4 72 . . 164 7 20 . 3 2 Melee 44 | . . . . . . . . . . . 5 . . . . 2 2 7 2 3 . . 4 . . . . 7 7 . 3 2 Projectile 1 | . . . . . . . . . . . . . . . . . . . . . . . . . . . 1 . . . . . AOE 343 | . . . 30 . . . . 43 . . 22 . . . . . . . . . . . . 72 . . 163 . 13 . . . Actions | -11 -10 -10 -9 -9 -9 -8 -8 -8 -7 -7 -7 -7 -7 -7 -6 -6 -6 -6 -6 -6 -6 -5 -5 -5 -5 -5 -5 -4 -4 -4 -3 -3 --------- Run | Scr Mat Min Mat Min Exi Min Mat Sto Fac Was Fac Low Low Zio Pro Fac Gar Fac Low Low Dat Pro Fac Ext Cet Arc Hub Fac Arm Lab Res Gar Total 17307 | 53 90 391 419 334 462 59 190 764 1023 92 1512 296 351 1229 674 977 414 897 313 418 106 246 1042 1268 505 121 222 1062 886 262 251 378 Wait 2809 | . . 45 37 114 . 8 33 36 130 . 275 16 12 191 363 143 109 79 8 15 . 3 110 340 211 61 1 157 213 9 4 86 Move 13622 | 44 89 327 334 215 462 50 144 697 799 91 1164 274 330 1005 303 801 256 776 302 398 97 241 879 856 266 56 212 838 643 217 228 228 Hop 105 | . . 4 10 1 . . . 7 17 . 18 . 3 . . 11 3 3 1 . 2 . 7 7 . . 1 10 . . . . Pick Up 60 | 3 1 1 3 . . . 2 . 3 1 4 1 . 4 . 4 1 3 . 1 2 1 5 2 4 . 1 6 2 3 2 . Fast Attach 82 | 5 . 2 5 1 . 1 2 1 4 . 5 1 . 8 . 2 1 4 . . . . 8 3 7 . 1 6 2 8 4 1 Attach 30 | . . . 3 . . . 2 . 4 . 3 . . 2 . 2 . 1 . . 1 1 5 . . . . 2 . 2 2 . Detach 19 | . . . 2 . . . . 1 2 . 5 1 . 1 . . . 1 . . . . 2 . . . . 2 1 . 1 . Swap 61 | . . . 3 . . . . 6 1 . 4 1 . 3 . 1 1 4 . 1 2 . 5 6 2 2 2 4 8 5 . . Drop 95 | . . 3 3 1 . . 2 1 3 . 6 1 . 12 . 4 1 5 . . . . 6 4 11 . 2 11 4 9 6 . Fire 106 | . . 9 12 2 . . 5 15 30 . 10 . . . . . . . . . . . . 18 . 1 2 . 2 . . . Melee 201 | . . . . . . . . . . . 18 1 6 3 8 9 13 21 2 3 2 . 14 24 4 1 . 24 11 9 4 24 Ram . | . . . . . . . . . . . . . . . . . . . . . . . . . . . . . . . . . Kick . | . . . . . . . . . . . . . . . . . . . . . . . . . . . . . . . . . Crush 1 | 1 . . . . . . . . . . . . . . . . . . . . . . . . . . . . . . . . Escape Stasis 108 | . . . . . . . . . 30 . . . . . . . 29 . . . . . . 8 . . . 2 . . . 39 Rewire 7 | . . . 7 . . . . . . . . . . . . . . . . . . . . . . . . . . . . . Trap 1 | . . . . . . . . . . . . . . . . . . . . . . . 1 . . . . . . . . . Miscellaneous . | . . . . . . . . . . . . . . . . . . . . . . . . . . . . . . . . . Route ------- -11/Scrapyard -10/Materials -10/Mines (discovered 2 exits: *Mat x2) -9/Materials (discovered 2 exits: [*Mat] / *Min) -9/Mines (discovered 2 exits: [*Mat] / *Exi) -9/Exiles (discovered 2 exits: [*Min x2]) -8/Mines -8/Materials -8/Storage -7/Factory -7/Waste -7/Factory (discovered 2 exits: *Low x2) -7/Lower Caves -7/Lower Caves -7/Zion -6/Proximity Caves -6/Factory (discovered 3 exits: *Low x2 / Gar) -6/Garrison -6/Factory (discovered 2 exits: *Low x2) -6/Lower Caves -6/Lower Caves (discovered 2 exits: Fac / *Dat) -6/Data Miner -5/Proximity Caves -5/Factory (discovered 5 exits: Fac / Upp x2 / *Ext x2) -5/Extension (discovered 2 exits: *Fac / *Cet) -5/Cetus (discovered 2 exits: *Fac / [*Arc]) -5/Archives -5/Hub_04(d) (discovered 2 exits: *Fac x2) -4/Factory (discovered 3 exits: Upp x2 / *Arm) -4/Armory -4/Lab -3/Research (discovered 6 exits: Res x3 / Qua x2 / Gar) -3/Garrison (discovered 1 exit: [*Res]) History --------- Turn | Location | Event 19 | -11/Scrapyard | Discovered new exit (range 16) 73 | -11/Scrapyard | Entered Materials 148 | -10/Materials | Discovered new exit (range 8) 217 | -10/Materials | Entered Mines 327 | -10/Mines | Build established: Mutant 366 | -10/Mines | Identified exit to Materials 412 | -10/Mines | Discovered exit to Materials (range 5) 462 | -10/Mines | Entered Materials 462 | -9/Materials | Accompanied by 2 allies 462 | -9/Materials | Evolved 2 slots: Propulsion x1, Utility x1 467 | -9/Materials | Led the pair of lost Derelicts to an unsafe place 547 | -9/Materials | Identified exit to Mines 560 | -9/Materials | Discovered new exit (range 14) 639 | -9/Materials | Destroyed 7 combat bots 675 | -9/Materials | Entered Mines 689 | -9/Mines | Assembled infested the area 694 | -9/Mines | Learned Materials garrison access intel 827 | -9/Mines | Discovered new exit (range 13) 842 | -9/Mines | Learned Materials stockpile data 858 | -9/Mines | Deemed a non-threat by the Exiles lab entrance 858 | -9/Mines | Discovered new exit (range 5) 860 | -9/Mines | Entered Exiles 865 | -9/Exiles | Discovered new exit (range 15) 868 | -9/Exiles | Met 8R-AWN 872 | -9/Exiles | Met EX-HEX 882 | -9/Exiles | Met EX-BIN 885 | -9/Exiles | Aligned with FarCom system 885 | -9/Exiles | Given EX-Vault access code 892 | -9/Exiles | Opened EX-Vault 902 | -9/Exiles | Warned to stay clear of 0b10 Research branches 910 | -9/Exiles | Met EX-DEC 930 | -9/Exiles | Build established: Sprinter 984 | -9/Exiles | Learned location of Zion (-7) 992 | -9/Exiles | Discovered new exit (range 10) 994 | -9/Exiles | Entered Mines 1006 | -8/Mines | Discovered new exit (range 12) 1019 | -8/Mines | Entered Materials 1019 | -8/Materials | Evolved 2 slots: Propulsion x1, Utility x1 1020 | -8/Materials | Identified exit to Storage 1112 | -8/Materials | Entered Storage 1384 | -8/Storage | Discovered new exit (range 6) 1385 | -8/Storage | Entered Factory 1385 | -7/Factory | Evolved 2 slots: Power x1, Utility x1 1787 | -7/Factory | Build established: Hacker-Sprinter 1878 | -7/Factory | Sucked down chute 1878 | -7/Factory | Entered Waste 1880 | -7/Waste | Spotted C-40 Crusher 1881 | -7/Waste | Spotted C-40 Crusher 1882 | -7/Waste | Spotted C-40 Crusher 1885 | -7/Waste | Spotted C-40 Crusher 1893 | -7/Waste | EMP discharged 1893 | -7/Waste | Spotted C-40 Crusher 1893 | -7/Waste | Discovered new exit (range 11) 1904 | -7/Waste | Identified exit to Factory 1904 | -7/Waste | Entered Factory 1943 | -7/Factory | Identified exit to Lower Caves 2095 | -7/Factory | Local fabrication network quarantined 2132 | -7/Factory | Fabricated Imp. Flight Unit (x1) 2306 | -7/Factory | Repaired Broken Kinetic Spear? 2592 | -7/Factory | Repaired Imp. Flight Unit 2597 | -7/Factory | Entered Lower Caves 2652 | -7/Lower Caves | Identified exit to Lower Caves 2692 | -7/Lower Caves | Entered another Lower Caves area 2713 | -7/Lower Caves | Encountered a Warlord checkpoint 2734 | -7/Lower Caves | P-60 Hacker assimilated allied 46-JXF(M) 2801 | -7/Lower Caves | Identified exit to Zion 2807 | -7/Lower Caves | Entered Zion 2811 | -7/Zion | Given the Hacking Drone Bay 2812 | -7/Zion | Found Prototype Device 2812 | -7/Zion | Identified Hacking Drone Bay 2822 | -7/Zion | Found CR-A16's Pointy Stick 2828 | -7/Zion | Acquired unknown access codes intercepted by a Zionite 2844 | -7/Zion | Discovered new exit (range 8) 2855 | -7/Zion | System corruption cleaned by Quarantine Array 2882 | -7/Zion | Learned location of Warlord (-5) 2917 | -7/Zion | Rebuked by Imprinter 2969 | -7/Zion | Given A8's code to call for help 3043 | -7/Zion | Enhanced Grunt warped into view, answering call for help 3046 | -7/Zion | Enhanced Grunt warped into view, answering call for help 3205 | -7/Zion | Revealed the true nature of CR-A1G's Pointy Stick 3206 | -7/Zion | Attacked by Zionites 3256 | -7/Zion | NK-0LA came to Zion's defense 3260 | -7/Zion | Destroyed NK-0LA 3271 | -7/Zion | Found Prototype Device 3271 | -7/Zion | Identified Thermal Barrier 3297 | -7/Zion | Entered Proximity Caves 3297 | -6/Proximity Caves | Accompanied by 2 allies 3330 | -6/Proximity Caves | Learned 8 Factory zone layouts 3491 | -6/Proximity Caves | Received a Behemoth hack from an annoying Tinkerer 3732 | -6/Proximity Caves | Discovered new exit (range 12) 3760 | -6/Proximity Caves | Entered Factory 3760 | -6/Factory | Accompanied by 2 allies 3760 | -6/Factory | Evolved 2 slots: Propulsion x1, Utility x1 3894 | -6/Factory | Identified exit to Lower Caves 3960 | -6/Factory | Identified exit to Garrison 3967 | -6/Factory | Local fabrication network quarantined 4013 | -6/Factory | Fabricated Imp. Cesium-ion Thruster? 4100 | -6/Factory | Fabricated Imp. Cesium-ion Thruster? 4135 | -6/Factory | Entered Garrison 4137 | -6/Garrison | Installed Relay Interface Framework 4154 | -6/Garrison | Triggered checkpoint 4168 | -6/Garrison | Garrison Relay disabled 4251 | -6/Garrison | Spotted B-75 Beast 4313 | -6/Garrison | Destroyed B-75 Beast 4340 | -6/Garrison | Discovered new exit (range 10) 4372 | -6/Garrison | Entered Factory 4549 | -6/Factory | Fabricated Imp. Cesium-ion Thruster? 4594 | -6/Factory | Build established: Sprinter 4671 | -6/Factory | Local fabrication network quarantined 4703 | -6/Factory | Entered Lower Caves 4712 | -6/Lower Caves | Learned 4 Factory zone layouts 4776 | -6/Lower Caves | Discovered new exit (range 14) 4788 | -6/Lower Caves | Attacked by a faux Warlord 4789 | -6/Lower Caves | Entered another Lower Caves area 4850 | -6/Lower Caves | Identified exit to Factory 4906 | -6/Lower Caves | Discovered new exit (range 5) 4910 | -6/Lower Caves | Entered Data Miner 4910 | -6/Data Miner | Discovered new exit (range 6) 4915 | -6/Data Miner | Met Data Miner 4919 | -6/Data Miner | Learned location of Section 7 (-2) 4919 | -6/Data Miner | Acquired the access code to Warlord's prototype stash 4924 | -6/Data Miner | Received God Mode back door access code from Data Miner 4933 | -6/Data Miner | Destroyed Data Miner 4936 | -6/Data Miner | Found Deep Network Scanner 4937 | -6/Data Miner | Found System Mapper 4943 | -6/Data Miner | Data Conduit disabled 4945 | -6/Data Miner | Entered Proximity Caves 4969 | -5/Proximity Caves | Attracted the attention of an 0b10 outpost 5005 | -5/Proximity Caves | Discovered exit to Factory (range 4) 5008 | -5/Proximity Caves | Entered Factory 5008 | -5/Factory | Evolved 2 slots: Utility x2 5009 | -5/Factory | Identified exit to Upper Caves 5010 | -5/Factory | Identified exit to Factory 5089 | -5/Factory | Identified exit to Extension 5127 | -5/Factory | Found Prototype Processor 5127 | -5/Factory | Identified Exp. Terrain Scan Processor 5253 | -5/Factory | Fabricated Cld. Cesium-ion Thruster? 5317 | -5/Factory | Fabricated Cld. Cesium-ion Thruster? 5400 | -5/Factory | Entered Extension 5413 | -5/Extension | Rescued a captive Derelict 5414 | -5/Extension | Rescued a captive Derelict 5438 | -5/Extension | Build established: Hacker-Sprinter 5450 | -5/Extension | Rescued a captive Derelict 5451 | -5/Extension | Rescued a captive Derelict 5456 | -5/Extension | Rescued a captive Derelict 5457 | -5/Extension | Destroyed 8 combat bots 5465 | -5/Extension | Rescued a captive Derelict 5505 | -5/Extension | Rescued a captive Derelict 5510 | -5/Extension | Rescued a captive Derelict 5772 | -5/Extension | Spotted B-75 Beast 5777 | -5/Extension | Spotted B-75 Beast 5781 | -5/Extension | Destroyed B-75 Beast 5786 | -5/Extension | Destroyed B-75 Beast 5807 | -5/Extension | Rescued a captive Derelict 5807 | -5/Extension | Rescued a captive Derelict 5815 | -5/Extension | Rescued a captive Derelict 5824 | -5/Extension | Rescued a captive Derelict 5826 | -5/Extension | Rescued a captive Derelict 5853 | -5/Extension | Rescued a captive Derelict 5872 | -5/Extension | Rescued A7 5963 | -5/Extension | Rescued a captive Derelict 5965 | -5/Extension | Rescued a captive Derelict 5979 | -5/Extension | Rescued a captive Derelict 5979 | -5/Extension | Rescued a captive Derelict 5983 | -5/Extension | Rescued a captive Derelict 5991 | -5/Extension | Discovered exit to Factory (range 10) 5991 | -5/Extension | Discovered new exit (range 6) 6016 | -5/Extension | Disrupted transfer network 6068 | -5/Extension | Entered Cetus 6068 | -5/Cetus | Accompanied by 18 allies 6073 | -5/Cetus | Acquired a Cetus Manufacturing Module code from A7 6089 | -5/Cetus | Spotted Cetus Guard 6089 | -5/Cetus | Spotted Cetus Guard 6089 | -5/Cetus | Spotted Cetus Guard 6089 | -5/Cetus | Spotted Cetus Guard 6098 | -5/Cetus | Allies destroyed Cetus Guard 6112 | -5/Cetus | Allies destroyed Cetus Guard 6113 | -5/Cetus | Allies destroyed Cetus Guard 6115 | -5/Cetus | Allies destroyed Cetus Guard 6126 | -5/Cetus | Started Cetus Manufacturing Module 6149 | -5/Cetus | Escorted A7 to Cetus Mainframe 6151 | -5/Cetus | Manufactured an Enhanced Grunt 6176 | -5/Cetus | Manufactured an Enhanced Grunt 6182 | -5/Cetus | Discovered new exit (range 16) 6201 | -5/Cetus | Manufactured an Enhanced Grunt 6226 | -5/Cetus | Manufactured an Enhanced Grunt 6251 | -5/Cetus | Manufactured an Enhanced Grunt 6282 | -5/Cetus | Spotted Cetus Guard 6287 | -5/Cetus | Spotted Cetus Guard 6289 | -5/Cetus | Spotted Cetus Guard 6294 | -5/Cetus | Allies destroyed Cetus Guard 6298 | -5/Cetus | Spotted Cetus Guard 6298 | -5/Cetus | Allies destroyed Cetus Guard 6299 | -5/Cetus | Allies destroyed Cetus Guard 6300 | -5/Cetus | Allies destroyed Cetus Guard 6303 | -5/Cetus | Discovered exit to Factory (range 15) 6307 | -5/Cetus | Met Revision 17 6347 | -5/Cetus | Destroyed A7 6348 | -5/Cetus | Extracted ID and sensor layout for unrecognized location from A7's data core 6377 | -5/Cetus | Entered Archives 6377 | -5/Archives | Accompanied by 8 allies 6435 | -5/Archives | Discovered new exit (range 15) 6459 | -5/Archives | Entered Hub_04(d) 6459 | -5/Hub_04(d) | Accompanied by 1 ally 6481 | -5/Hub_04(d) | Discovered exit to Factory (range 5) 6501 | -5/Hub_04(d) | Discovered exit to Factory (range 12) 6510 | -5/Hub_04(d) | Network Hub disabled 6521 | -5/Hub_04(d) | Entered Factory 6521 | -4/Factory | Evolved 2 slots: Utility x2 6568 | -4/Factory | Identified exit to Upper Caves 6568 | -4/Factory | Identified exit to Armory 6613 | -4/Factory | Central database locked down 6665 | -4/Factory | Spotted B-86 Titan 6674 | -4/Factory | Destroyed B-86 Titan 6733 | -4/Factory | Fabricated Cld. Field Propulsion Drive (x1) 6783 | -4/Factory | Fabricated Cld. Field Propulsion Drive (x1) 6827 | -4/Factory | Local fabrication network quarantined 6830 | -4/Factory | Fabricated Cld. Field Propulsion Drive (x1) 6974 | -4/Factory | Entered Armory 7194 | -4/Armory | Fabricated Exp. Terrain Scan Processor (x1) 7273 | -4/Armory | Fabricated Exp. Terrain Scanner (x1) 7340 | -4/Armory | Fabricated P-70 Sage? 7346 | -4/Armory | Discovered new exit (range 22) 7393 | -4/Armory | Entered Lab 7393 | -4/Lab | Discovered new exit (range 9) 7396 | -4/Lab | Hidden lab's door opened automatically 7396 | -4/Lab | Sensor layout match revealed 7397 | -4/Lab | Gained access to the hidden lab's interior 7400 | -4/Lab | Found Alien Artifact 7401 | -4/Lab | Identified Core Reset Matrix 7401 | -4/Lab | Used Core Reset Matrix 7404 | -4/Lab | Discovered new exit (range 7) 7405 | -4/Lab | Sensed 3 artifacts in vicinity 7408 | -4/Lab | Detected by scanners 7418 | -4/Lab | Found Prototype Protection 7418 | -4/Lab | Identified Exp. Powered Armor 7424 | -4/Lab | Confronted by A5 7446 | -4/Lab | Destroyed A5 7459 | -4/Lab | Found Integrated Reactor 7464 | -4/Lab | Installed Integrated Reactor, increased core energy generation (+10) 7472 | -4/Lab | Found Transdimensional Reconstructor 7478 | -4/Lab | Found Deep Network Scanner 7481 | -4/Lab | Found Prototype Hackware 7481 | -4/Lab | Identified Exp. System Shield 7502 | -4/Lab | Entered Research 7502 | -3/Research | Evolved 2 slots: Utility x2 7520 | -3/Research | Identified exit to Quarantine 7520 | -3/Research | Identified exit to Research 7562 | -3/Research | Found Unknown Piercing Weapon 7562 | -3/Research | Identified Enh. Force Lance 7583 | -3/Research | Identified exit to Garrison 7583 | -3/Research | Entered Garrison 7710 | -3/Garrison | Triggered checkpoint 7732 | -3/Garrison | Spotted B-86 Titan 7752 | -3/Garrison | Build established: Wizard-Sprinter 7753 | -3/Garrison | Destroyed B-86 Titan 7770 | -3/Garrison | Triggered checkpoint 7802 | -3/Garrison | Discovered new exit (range 8) 7805 | -3/Garrison | Attempted to install RIF, but system incompatible 7806 | -3/Garrison | Attempted to access garrison exit controls, blocked by remote lockdown 7814 | -3/Garrison | Self-destructed Last Messages --------------- 07751_ Kinetic Spear follow-up attack on B-86 Titan. 07753_ B-86 Titan suddenly blasts apart at the seams. 07753_ B-86 Titan destroyed. 07755_ Acquired 10 matter. 07770_ Beams of light sweep through the air. An alarm sounds. 07773_ Triggered Stasis Trap. 07773_ A bubble of rippling energy engulfs the area. 07773_ Field strength at 95. 07776_ S-43 Plague destroyed. 07784_ Sml. Battery destroyed. 07787_ Field strength at 48. 07790_ Field strength at 25. 07795_ S-43 Plague destroyed. 07797_ Field strength at 3. 07798_ Stasis field depleted. 07802_ EXIT=FOUND 07805_ Initiating installation procedure... 07805_ Relay Interface Framework incompatible with system. 07806_ Attempting to access garrison exit controls... 07806_ Remote lockdown engaged. Map ----- +----------------------------------------------------+ | ?????????????????????????????????????????? | | ?????????????????????????????????????????? | | ?????????????????????????????????????????? | | ?????????????????????????????????????????? | | #?????????????????????????????????????????? | | ##########????????????????????????????????? | | #????????????????????????????????? | | #????????????????????????????????? | | ####### #????????????????????????????????? | | ##?????# #????????????????????????????????? | | #????###*=#????????????????????????????????? | | #?????%+%%#????????????????????????????????? | | #??????# ^#????????????????????????????????? | | #??????#* #????????????????????????????????? | | #??????# #????????????????????????????????? | | #??????# #????????????????????????????????? | | ######## ##############???????????????????? | | #???????????????????? | | #???????????????????? | | ###### ################ #???????????????????? | | ?????#????????????????# #???????????????????? | | ??????????????????????# #???????????????????? | | ??????????????????????# #???????????????????? | | ??????????????????????# #???????????????????? | | ??????????????????????# s########????????????? | | ??????????????????????# @ #""""#????????????? | | ??????????????????????#